[Event "XII Cracow ICC-A 2024"]
[Site "Krakow"]
[Date "2024.06.23"]
[Round "2.1"]
[White "Fier, Alexandr"]
[Black "Gullaksen, Eirik"]
[Result "1-0"]
[ECO "B30"]
[WhiteElo "2602"]
[BlackElo "2307"]
[Annotator "TA"]
[PlyCount "69"]
[EventDate "2024.06.20"]
[EventType "swiss"]
[EventCountry "POL"]
[SourceTitle "playchess.com"]
[Source "ChessBase"]
[SourceQuality "1"]
[TimeControl "40/5400+30:1800+30"]

{[%evp 9,69,24,28,29,29,-18,26,54,42,47,51,42,65,56,69,36,139,133,121,137,129,139,134,151,150,159,129,134,194,188,181,181,189,169,296,225,270,283,307,313,293,305,298,282,374,381,390,388,378,386,430,424,417,410,499,493,511,508,481,463,507,481]} 1. e4 {[%emt 0:00:04]} c5 {[%emt 0:00:22]} 2. Nf3 {[%emt 0:00:04]} Nc6 {[%emt 0:00:07]} 3. Bb5 {[%emt 0:00:04]} Nf6 {[%emt 0:00:24]} 4. Nc3 {[%emt 0:00:19]} g6 {[%emt 0:00:12]} 5. h3 {[%emt 0:00:23]} Bg7 {[%emt 0:01:01]} 6. e5 {[%emt 0:00:06]} Ng8 {[%emt 0:00:06]} 7. O-O {[%emt 0:00:03]} (7. Bxc6 $142 dxc6 8. O-O) 7... Nh6 {[%emt 0:01:05]} 8. d4 {[%emt 0:00:05] White has an edge.} cxd4 {[%emt 0:01:08]} 9. Nxd4 {[%emt 0:00:05]} O-O {[%emt 0:06:49]} 10. Nf3 {[%emt 0:00:13]} d6 {[%emt 0:08:28]} 11. exd6 {[%emt 0:05:58]} exd6 {[%emt 0:01:13]} 12. Bg5 {[%emt 0:04:45]} f6 {[%emt 0:02:51] White stays focused until the end.} ({Better is} 12... Qa5 $14) 13. Bxh6 $16 {[%emt 0:02:40]} Bxh6 {[%emt 0:00:08]} 14. Qd5+ {[%emt 0:00:02]} Kh8 {[%emt 0:01:18]} 15. Rad1 {[%emt 0:01:10][%cal Ba1d1,Bd1d6,Bd6f6][%mdl 32] White is more active.} Bf5 {[%emt 0:06:19][%cal Bc8f5,Bf5c2,Bc2d3][%mdl 32]} 16. Bxc6 {[%emt 0:00:57]} (16. Qxd6 Bxc2 17. Qxd8 Rfxd8 18. Rxd8+ Rxd8) 16... bxc6 {[%emt 0:00:18]} 17. Qxc6 {[%emt 0:00:04]} Bxc2 {[%emt 0:07:01]} 18. Rxd6 {[%emt 0:00:12]} Qc8 {[%emt 0:01:46]} (18... Qb8 $16) 19. Nd4 $18 {[%emt 0:02:12]} Bd3 {[%emt 0:01:04]} 20. Rd1 {[%emt 0:00:04]} Bc4 {[%emt 0:03:07]} 21. Rxf6 {[%emt 0:02:53]} Re8 {[%emt 0:02:11] [#]} (21... Qxc6 {was necessary.} 22. Rxc6 Bg8) 22. Nf5 $1 {[%emt 0:03:39][%mdl 512]} Bg5 {[%emt 0:05:22] [#]} (22... Bf8 23. Qa4) 23. h4 $1 {[%emt 0:00:05] Hoping for Rxg6.} Be6 {[%emt 0:09:24]} (23... Bf4 24. Qf3) 24. Rxe6 {[%emt 0:01:51]} Rxe6 {[%emt 0:04:56] [#]} 25. Qxc8+ {[%emt 0:00:03]} Rxc8 {[%emt 0:00:11][%cal Ba8c8,Bc8c4,Bc4c2,Bc2d2][%mdl 32]} 26. Nd4 {[%emt 0:00:03]} Rd6 {[%emt 0:01:08]} 27. hxg5 {[%emt 0:00:05]} Rc4 {[%emt 0:02:23]} 28. Nde2 {[%emt 0:00:15]} Rxd1+ {[%emt 0:00:45]} 29. Nxd1 {[%emt 0:00:03]} Rc2 {[%emt 0:00:17]} 30. Nec3 {[%emt 0:00:05]} Kg7 {[%emt 0:00:29]} 31. g3 {[%emt 0:00:47][%cal Bg2g3,Bg3g4][%mdl 32]} Kf7 {[%emt 0:00:39]} 32. Kg2 {[%emt 0:00:03] White is clearly winning.} Ke6 {[%emt 0:00:07]} 33. Kf3 {[%emt 0:00:03]} Rd2 {[%emt 0:01:09]} 34. Ke4 {[%emt 0:00:03]} a6 {[%emt 0:01:11]} 35. g4 {[%emt 0:00:10] Weighted Error Value: White=0.09 (flawless) /Black=0.33.  Mistake:       	White=1     	Black=3      Inaccurate:     	White=1     	Black=2      OK:         	White=17    	Black=8      Best:        	White=2     	---} 1-0

[Event "XII Cracow ICC-A 2024"]
[Site "Krakow"]
[Date "2024.06.23"]
[Round "2.2"]
[White "Brzezina, Piotr"]
[Black "Gumularz, Szymon"]
[Result "0-1"]
[ECO "C07"]
[WhiteElo "2298"]
[BlackElo "2593"]
[Annotator "TA"]
[PlyCount "138"]
[EventDate "2024.06.20"]
[EventType "swiss"]
[EventCountry "POL"]
[SourceTitle "playchess.com"]
[Source "ChessBase"]
[SourceQuality "1"]
[TimeControl "40/5400+30:1800+30"]

{[%evp 24,138,0,0,0,0,0,-6,0,0,0,-24,-16,-18,-8,-8,-4,0,0,0,0,0,0,0,0,0,0,0,-6,-31,0,-8,0,0,0,0,0,0,0,-4,-5,-30,-18,-33,-17,-27,-23,-33,0,0,-21,-18,-9,-15,-19,-25,-20,-36,-11,-68,-60,-70,-69,-84,-84,-84,-82,-99,-94,-97,-102,-95,-94,-108,-95,-85,-65,-92,-92,-73,-74,-126,-126,-141,-114,-126,-126,-192,-156,-268,-126,-126,-126,-126,-97,-162,-157,-157,-158,-231,-131,-2175,-2053,-29968,-29970,-29976,-29977,-29977,-29978,-29981,-29982,-29982,-29983,-29983,-29984,-29984,-29985]} 1. e4 {[%emt 0:01:20]} e6 {[%emt 0:00:08]} 2. d4 {[%emt 0:00:14]} d5 {[%emt 0:00:07]} 3. Nd2 {[%emt 0:00:16]} c5 {[%emt 0:00:07]} 4. exd5 {[%emt 0:00:17]} Qxd5 {[%emt 0:00:09]} 5. dxc5 {[%emt 0:00:13]} Qxc5 {[%emt 0:02:07]} 6. Ngf3 {[%emt 0:00:13] C07: French Tarrasch: 3...c5, 4 Ngf3 and 4 exd5 Qxd5.} Nf6 {[%emt 0:00:07]} 7. Bd3 {[%emt 0:00:24]} Nbd7 $1 {[%emt 0:00:24] 7...Nbd7 is better than 7...Be7.} 8. O-O {[%emt 0:02:06]} Qc7 {[%emt 0:01:50]} 9. c3 {[%emt 0:08:47]} Be7 {[%emt 0:00:43]} 10. Ne4 {[%emt 0:01:30]} O-O {[%emt 0:00:12]} 11. Nxf6+ {[%emt 0:05:03]} Nxf6 {[%emt 0:00:08]} 12. Qe2 {[%emt 0:00:10]} b6 {[%emt 0:00:40]} 13. Bg5 $146 {[%emt 0:01:10]} ({Predecessor:} 13. Be3 Bb7 14. Bd4 Rfd8 15. Rfe1 Rd5 16. Ne5 Bd6 17. h3 Rd8 18. f4 Bc5 19. Bxc5 Qxc5+ 20. Kh2 Qc7 21. Rad1 g6 22. Qf2 Nh5 23. g3 f6 {0-1 Wang,H (2722)-Shankland,S (2710) Gashimov Memorial Blitz 8th 2022 (4)}) 13... Bb7 {[%emt 0:00:16]} 14. Rfd1 {[%emt 0:06:58]} Rfd8 {[%emt 0:03:04]} 15. Bc2 {[%emt 0:06:32]} h6 {[%emt 0:02:24]} 16. Bh4 {[%emt 0:09:02]} Qc6 {[%emt 0:04:57]} 17. Qf1 {[%emt 0:01:28]} Qc5 {[%emt 0:06:36]} 18. Qe2 {[%emt 0:02:21]} b5 {[%emt 0:00:46]} (18... Qh5 {simplifies} 19. Bg3 b5 20. Rxd8+ Rxd8 21. Rd1 Rxd1+ 22. Qxd1 a6) 19. Ne5 {[%emt 0:05:43]} g5 {[%emt 0:20:47]} 20. Bg3 {[%emt 0:00:35]} Rxd1+ {[%emt 0:00:08]} 21. Rxd1 {[%emt 0:00:16]} Rd8 {[%emt 0:00:11]} 22. Rxd8+ {[%emt 0:06:11]} Bxd8 {[%emt 0:00:04]} 23. Qd3 {[%emt 0:01:13]} Qd5 {[%emt 0:00:14]} 24. Qxd5 {[%emt 0:01:56]} Nxd5 {[%emt 0:03:46]} 25. f3 {[%emt 0:04:57]} f6 {[%emt 0:00:50]} 26. Nd3 {[%emt 0:00:59]} Kf7 {[%emt 0:00:26]} 27. Bf2 {[%emt 0:01:03]} a5 {[%emt 0:02:12]} 28. a4 {[%emt 0:02:57]} Bc6 {[%emt 0:00:51]} 29. Nc5 {[%emt 0:01:50]} b4 {[%emt 0:03:09]} 30. c4 {[%emt 0:08:26]} Nf4 {[%emt 0:03:43]} 31. b3 {[%emt 0:04:48]} f5 {[%emt 0:00:15]} 32. Nd3 {[%emt 0:01:34]} Ng6 {[%emt 0:00:20]} 33. Bd4 {[%emt 0:00:26]} Bc7 {[%emt 0:00:27]} 34. Nc5 {[%emt 0:04:07]} Be5 {[%emt 0:11:24]} 35. Be3 {[%emt 0:03:07]} Ke7 {[%emt 0:04:24]} 36. Na6 {[%emt 0:02:35]} Bb7 {[%emt 0:05:09]} 37. Nc5 {[%emt 0:00:07]} Bc8 {[%emt 0:00:17]} 38. g3 {[%emt 0:00:57]} Bc7 {[%emt 0:01:49]} 39. Kf1 {[%emt 0:01:03]} Kf6 {[%emt 0:01:45]} 40. Ke2 {[%emt 0:02:03]} h5 {[%emt 0:02:22]} 41. Nd3 {[%emt 0:33:27]} ({White should play} 41. Kf2 $11) 41... e5 $15 {[%emt 0:31:16]} 42. Nf2 {[%emt 0:00:00]} g4 $1 {[%emt 0:00:00]} 43. fxg4 {[%emt 0:00:00]} hxg4 {[%emt 0:00:00]} 44. Bc5 {[%emt 0:00:00]} e4 {[%emt 0:00:00]} 45. Nd1 {[%emt 0:00:00]} Ne5 {[%emt 0:00:00]} 46. Ne3 {[%emt 0:00:00]} Be6 {[%emt 0:00:00]} 47. Kf2 {[%emt 0:00:00]} Nf3 {[%emt 0:00:00]} 48. Nf1 {[%emt 0:00:00]} Bd7 {[%emt 0:00:00]} 49. Bd1 {[%emt 0:00:00]} Bc6 {[%emt 0:00:00]} 50. Ke3 {[%emt 0:01:24]} Ke6 {[%emt 0:00:00]} 51. Kf2 {[%emt 0:03:39]} Bd8 {[%emt 0:00:00]} 52. Be3 {[%emt 0:01:19]} (52. Ba7 $142) 52... Bd7 $17 {[%emt 0:00:00]} 53. Be2 {[%emt 0:00:27]} Kd6 {[%emt 0:00:00]} 54. Bf4+ {[%emt 0:01:29]} Kc6 {[%emt 0:00:00]} 55. Be3 {[%emt 0:00:39]} (55. Bd1 $17) 55... Bf6 {[%emt 0:00:00]} 56. Bd1 {[%emt 0:00:37] [#]} (56. Bxf3 $17 exf3 (56... gxf3 57. Ba7 $15) 57. Nd2) 56... Be6 {[%emt 0:00:00]} (56... Bd4 $1 $19 {is more deadly.} 57. Bxd4 (57. Bxf3 Bxe3+ 58. Kxe3 exf3 $19) 57... Nxd4) 57. Be2 {[%emt 0:00:31]} Bc3 {[%emt 0:00:36]} 58. Bd1 {[%emt 0:00:07]} Ne5 {[%emt 0:00:53]} 59. Be2 {[%emt 0:00:53] [#]} (59. Nd2 $17) 59... Nxc4 $1 $19 {[%emt 0:07:22]} 60. bxc4 {[%emt 0:00:25]} (60. Bxc4 $2 {perishes.} Bxc4 61. bxc4 b3 $19) 60... b3 {[%emt 0:00:03]} 61. Bd1 {[%emt 0:00:23]} Bxc4 {[%emt 0:03:58]} (61... b2 $19 62. Bc2 Bxc4) 62. Bd2 $2 {[%emt 0:00:18][%mdl 8192]} (62. Nd2 $17 Bxd2 (62... b2 63. Bc2 $17) 63. Bxd2) 62... b2 $19 {[%emt 0:00:05]} 63. Bc2 {[%emt 0:00:38]} Bd4+ {[%emt 0:00:03]} 64. Be3 {[%emt 0:00:45]} Bxe3+ {[%emt 0:00:15]} 65. Nxe3 {[%emt 0:00:30]} Bd3 {[%emt 0:00:06]} 66. Nd1 {[%emt 0:00:24]} Bxc2 {[%emt 0:00:05]} 67. Nxb2 {[%emt 0:00:19]} Kc5 {[%emt 0:00:08]} 68. Ke3 {[%emt 0:00:32]} Kb4 {[%emt 0:00:07]} 69. Kd4 {[%emt 0:00:41]} Bb3 {[%emt 0:00:14]} 0-1

[Event "XII Cracow ICC-A 2024"]
[Site "Krakow"]
[Date "2024.06.23"]
[Round "2.3"]
[White "Eliseev, Sergey"]
[Black "Rozentalis, Eduardas"]
[Result "0-1"]
[ECO "C60"]
[WhiteElo "2296"]
[BlackElo "2476"]
[Annotator "TA"]
[PlyCount "76"]
[EventDate "2024.06.20"]
[EventType "swiss"]
[EventCountry "POL"]
[SourceTitle "playchess.com"]
[Source "ChessBase"]
[SourceQuality "1"]
[TimeControl "40/5400+30:1800+30"]

{[%evp 9,76,10,67,65,77,66,70,68,70,70,68,75,182,40,35,-16,-22,-95,87,55,60,62,55,46,58,32,56,39,55,56,50,-40,-53,-47,-62,-77,-85,-103,-139,-126,-127,-116,-115,-140,-143,-200,-156,-172,-170,-142,-127,-384,-364,-403,-394,-380,-393,-375,-399,-546,-531,-718,-724,-716,-696,-859,-852,-1293,-1195]} 1. e4 {[%emt 0:14:39]} e5 {[%emt 0:00:19]} 2. Nf3 {[%emt 0:00:07]} Nc6 {[%emt 0:00:06]} 3. Bb5 {[%emt 0:00:12]} Nge7 {[%emt 0:00:10]} 4. Nc3 {[%emt 0:00:35]} Ng6 {[%emt 0:00:26]} 5. h4 {[%emt 0:00:20][%cal Bh2h4,Bh4h5][%mdl 32]} Bc5 {[%emt 0:05:57]} (5... Be7 $11) 6. h5 $14 {[%emt 0:02:46]} Nf4 {[%emt 0:00:36] [#]} 7. Nxe5 $1 {[%emt 0:00:40] Bxc6 would now be deadly.} Qg5 {[%emt 0:10:48]} (7... Nxe5 8. d4) 8. g3 $1 {[%emt 0:06:17] White is slightly better.} Nxe5 {[%emt 0:04:03]} 9. d4 {[%emt 0:00:44]} (9. gxf4 Qg2 (9... Qxf4 10. d4 $16) 10. Rf1 Nf3+ 11. Ke2 c6 $19) 9... Bxd4 $1 {[%emt 0:00:19]} 10. Nd5 {[%emt 0:01:25]} (10. gxf4 $2 Qg2 11. Kd2 Nf3+ (11... Qxf2+ 12. Qe2 $17) 12. Ke2 c6 $19 (12... Bxf2 $2 13. Qf1 $19) (12... Qxf2+ $2 13. Kd3 $17)) 10... Nfd3+ {[%emt 0:11:13]} (10... Bxf2+ 11. Kxf2 Ng4+ 12. Kg1 $18 (12. Kf1 Nxd5 13. Bxg5 Nde3+ 14. Kg1 Nxd1 $17) (12. Kf1 Nxd5 13. Bxg5 Nde3+ 14. Kg1 Nxd1 $17)) (10... Ng2+ $16 11. Kf1 Ne3+ 12. Bxe3 (12. fxe3 Bb6 $17) 12... Bxe3) 11. cxd3 {[%emt 0:18:27]} ({Only move:} 11. Bxd3 $18 Qd8 12. f4) 11... Qd8 {[%emt 0:00:44]} 12. Qa4 {[%emt 0:02:11]} ({Better is} 12. Be3 $14 Bxe3 13. Nxe3) 12... c6 $11 {[%emt 0:02:14]} 13. Kf1 {[%emt 0:07:31]} (13. Ke2 $1 $11 {remains equal.} Bb6 14. Nxb6 Qxb6 15. Bc4) 13... Bc5 $2 {[%emt 0:09:11]} (13... Nf3 $17 {and life is bright.} 14. Kg2 (14. Qd1 Ng5 $17) 14... cxd5 (14... cxb5 15. Qa3 $14) 15. Kxf3 Qf6+ 16. Bf4 a6) 14. Bf4 $16 {[%emt 0:04:26]} f6 $1 {[%emt 0:05:58]} (14... cxb5 $2 {perishes.} 15. Qc2 O-O 16. Bxe5 $18 (16. Qxc5 d6 $16)) 15. d4 {[%emt 0:07:00][%cal Oh5h6] Inhibits d6.} cxb5 {[%emt 0:02:02]} 16. Qd1 {[%emt 0:11:42][%cal Oh5h6]} d6 {[%emt 0:02:41]} 17. dxc5 {[%emt 0:00:38]} ({But not} 17. dxe5 fxe5 18. b4 Bb6 $11) 17... O-O {[%emt 0:00:55]} 18. Qb3 {[%emt 0:02:46]} Rf7 {[%emt 0:03:04] Prevents Ne7+} 19. cxd6 {[%emt 0:01:18]} Qxd6 {[%emt 0:00:56]} 20. Qb4 {[%emt 0:03:41]} (20. h6 $14) 20... Qxb4 $15 {[%emt 0:04:50]} 21. Nxb4 {[%emt 0:00:02]} Be6 {[%emt 0:01:16]} 22. Kg2 {[%emt 0:06:22]} Bg4 {[%emt 0:00:25] aiming for ...Bf3+.} 23. Rh4 {[%emt 0:05:15] [#] Strongly threatening Bxe5.} Bf3+ {[%emt 0:00:34]} 24. Kf1 {[%emt 0:01:50]} g5 {[%emt 0:05:11] Black is more active.} (24... Bxe4 $2 {is the wrong capture.} 25. Bxe5 Bf3 26. Bd4 $18) 25. hxg6 {[%emt 0:01:13]} Nxg6 {[%emt 0:00:10]} 26. Rh6 {[%emt 0:00:39]} Bxe4 {[%emt 0:06:18]} 27. a3 {[%emt 0:00:14]} (27. Re1 $17 f5 28. Rd1) 27... Rd8 {[%emt 0:01:09] Threatens to win with ...Nxf4.} 28. Be3 {[%emt 0:00:15]} a5 {[%emt 0:03:32]} 29. Na2 {[%emt 0:00:05]} Bf3 $36 {[%emt 0:00:22][%mdl 2048] Black is in control.} 30. Nc3 $2 {[%emt 0:01:39][%mdl 8192] This move loses the game for White.} (30. Re1 $17) 30... b4 $19 {[%emt 0:03:35]} 31. axb4 {[%emt 0:00:01]} axb4 {[%emt 0:00:05]} 32. Ne2 {[%emt 0:00:49]} Rfd7 {[%emt 0:00:15] Prevents Nd4.} 33. Ke1 {[%emt 0:00:18] Prevents Rd1+.} Rd5 {[%emt 0:02:14]} 34. Rc1 {[%emt 0:00:34]} Ne5 {[%emt 0:01:23] ( -> ...Nd3+). Black is clearly winning.} 35. Rxf6 {[%emt 0:00:46]} Nd3+ {[%emt 0:00:07]} 36. Kf1 {[%emt 0:00:07]} Nxc1 {[%emt 0:00:24]} 37. Nd4 {[%emt 0:00:41]} Rxd4 {[%emt 0:00:24]} 38. Bxd4 {[%emt 0:00:07]} Be2+ {[%emt 0:00:07] Weighted Error Value: White=0.61/Black=0.21 (precise) .  Loses game:     	White=1     	---        Mistake:       	White=5     	Black=2      Inaccurate:     	White=2     	---        OK:         	White=9     	Black=13     Best:        	White=2     	Black=3      Strong:       	White=1     	Black=2} 0-1

[Event "XII Cracow ICC-A 2024"]
[Site "Krakow"]
[Date "2024.06.23"]
[Round "2.4"]
[White "Karolczuk, Iwo"]
[Black "Drozdowski, Kacper"]
[Result "1-0"]
[ECO "B47"]
[WhiteElo "2293"]
[BlackElo "2448"]
[Annotator "TA"]
[PlyCount "113"]
[EventDate "2024.06.20"]
[EventType "swiss"]
[EventCountry "POL"]
[SourceTitle "playchess.com"]
[Source "ChessBase"]
[SourceQuality "1"]
[TimeControl "40/5400+30:1800+30"]

{[%evp 40,113,-33,-60,-52,-67,-12,-29,-5,-8,4,9,54,34,25,0,0,0,0,-235,0,-159,0,0,0,0,0,0,0,0,0,0,29,0,0,0,154,0,71,-20,0,0,0,0,0,0,0,0,140,140,140,134,127,136,138,135,671,551,1310,1248,1262,1204,2106,2346,1989,1802,29965,29966,29982,1809,4866,4862,29976,29975,29976,29977]} 1. e4 {[%emt 0:01:02]} c5 {[%emt 0:00:04]} 2. Nf3 {[%emt 0:00:05]} e6 {[%emt 0:00:06]} 3. d4 {[%emt 0:00:28]} cxd4 {[%emt 0:00:07]} 4. Nxd4 {[%emt 0:00:04]} Nc6 {[%emt 0:00:08]} 5. Nc3 {[%emt 0:00:04]} Qc7 {[%emt 0:00:08]} 6. Ncb5 {[%emt 0:00:36] B47: Sicilian: Taimanov: 5 Nc3 Qc7 6 f4, 6 g3 and 6 Be2.} Qb8 {[%emt 0:00:30]} 7. Bd3 {[%emt 0:00:10]} Nge7 {[%emt 0:01:42]} 8. O-O {[%emt 0:02:30]} Ng6 $146 {[%emt 0:02:13]} ({Predecessor:} 8... a6 9. Nxc6 Nxc6 10. Nc3 b5 11. f4 Bc5+ 12. Kh1 d6 13. e5 d5 14. Bd2 Qa7 {1-0 Bressac,S (2277)-Hejazipour,M (2358) FRA-chT Top 16 Haute 2024 (4.15)}) 9. Kh1 {[%emt 0:08:57]} a6 {[%emt 0:06:22]} 10. Nxc6 {[%emt 0:00:08]} bxc6 {[%emt 0:00:06]} 11. Nd4 {[%emt 0:00:27]} c5 {[%emt 0:00:11]} 12. Ne2 {[%emt 0:02:16]} Be7 {[%emt 0:10:17]} 13. f4 {[%emt 0:04:37]} Bb7 {[%emt 0:03:31]} 14. Ng3 {[%emt 0:14:13]} Qc7 {[%emt 0:00:43]} 15. f5 {[%emt 0:03:04]} Ne5 {[%emt 0:01:12]} 16. Bf4 {[%emt 0:04:42]} g6 {[%emt 0:15:02]} 17. Bh6 {[%emt 0:07:03]} O-O-O {[%emt 0:04:54]} 18. b3 {[%emt 0:25:02]} Rhg8 {[%emt 0:02:44]} 19. f6 {[%emt 0:12:39]} Bd6 {[%emt 0:00:16]} 20. Qe2 {[%emt 0:03:03]} Qc6 {[%emt 0:03:50]} 21. Rad1 {[%emt 0:02:09]} Bc7 {[%emt 0:03:53]} 22. c4 {[%emt 0:01:12]} Qb6 {[%emt 0:03:13]} (22... Nxd3 $15 23. Rxd3 Bxg3 24. Rxg3 Qxe4) 23. Bb1 $11 {[%emt 0:01:17]} Nc6 {[%emt 0:00:53]} 24. Qf2 {[%emt 0:00:23]} g5 {[%emt 0:02:29]} 25. Bg7 {[%emt 0:01:12]} Be5 {[%emt 0:03:24]} 26. Qe2 {[%emt 0:01:40]} Qc7 {[%emt 0:09:10]} 27. Qh5 {[%emt 0:00:43]} Bxg3 {[%emt 0:04:39]} 28. hxg3 {[%emt 0:00:04]} Qxg3 {[%emt 0:00:09]} 29. Qxf7 $2 {[%emt 0:04:17]} (29. Rd3 $11 {and White stays safe.} Qe5 30. Rh3 (30. Qxf7 Nd4 $11)) 29... Qh4+ $1 $19 {[%emt 0:08:46]} 30. Kg1 {[%emt 0:00:02] [#]} Nd4 $2 {[%emt 0:00:09]} (30... g4 $1 $17 31. Rf4 (31. Rxd7 $2 g3 $19) 31... Nd4 32. Rxd4 (32. Bd3 $2 e5 $19) 32... cxd4) 31. Rxd4 $1 $11 {[%emt 0:00:55]} cxd4 {[%emt 0:00:02]} 32. Qe7 {[%emt 0:00:14]} g4 $1 {[%emt 0:01:03]} 33. Qc5+ {[%emt 0:00:36]} Bc6 {[%emt 0:00:02]} 34. Qxd4 {[%emt 0:00:09]} (34. f7 $2 g3 $19) 34... g3 {[%emt 0:05:47]} 35. Rf3 {[%emt 0:00:09]} Qg5 {[%emt 0:03:12]} 36. Qc3 {[%emt 0:01:26]} Qh5 {[%emt 0:02:01]} 37. Qe3 {[%emt 0:00:47]} (37. Rxg3 $5 Qd1+ $8 38. Kh2 $16) 37... d5 $2 {[%emt 0:02:05]} (37... Qh2+ $11 38. Kf1 Qh1+ 39. Qg1 Qh5) 38. exd5 $2 {[%emt 0:00:10]} (38. Rxg3 $16 {Hoping for exd5.} dxc4 (38... Qd1+ 39. Kh2 $16) 39. Bc2) 38... exd5 {[%emt 0:00:30] [#]} (38... Qh2+ $11 {remains equal.} 39. Kf1 exd5 40. Bf5+ (40. Rxg3 Rge8 $11) 40... Kb7 41. Rxg3 (41. Qe7+ $2 Ka8 $19) 41... Rge8) 39. Rxg3 {[%emt 0:00:47]} (39. Bf5+ Kb7 40. Qe7+ Ka8 41. Rxg3 (41. f7 $2 Qh2+ 42. Kf1 Qh1+ 43. Ke2 Qxg2+ 44. Ke1 Qxf3 $19) 41... dxc4 $11) (39. Qh6 $1 $16 {[%cal Rh6h5]} Qxh6 40. Bxh6 dxc4 41. f7) 39... Rge8 {[%emt 0:02:26]} (39... Qd1+ 40. Kh2 Kb7 41. Qf3 (41. Bxh7 Rge8 $16) 41... dxc4 (41... Qxb1 $2 42. f7 $18) 42. Qxd1 Rxd1 43. f7 $18 (43. Bxh7 Rgd8 $18)) 40. Qf2 {[%emt 0:00:32]} Qd1+ {[%emt 0:00:46]} 41. Kh2 $1 {[%emt 0:30:33]} Re1 {[%emt 0:08:52]} 42. Bf5+ {[%emt 0:00:00]} (42. Bxh7 $2 Rh1#) 42... Kb7 {[%emt 0:01:50]} 43. Re3 $1 {[%emt 0:00:00]} (43. Bxh7 $2 Rh1#) 43... Rxe3 {[%emt 0:08:29]} (43... Rh1+ $11 44. Kg3 d4 45. Re7+ Ka8) 44. Qxe3 $16 {[%emt 0:00:00]} Re8 {[%emt 0:00:21]} 45. Qf3 {[%emt 0:00:00]} Qxf3 {[%emt 0:03:27]} 46. gxf3 {[%emt 0:00:00]} Re5 {[%emt 0:00:08]} 47. Be6 {[%emt 0:00:00]} (47. Bxh7 $2 Rh5+ 48. Kg3 Rxh7 $19) 47... Be8 $2 {[%emt 0:05:09][%mdl 8192]} (47... Rxe6 $16 48. f7 Re8 (48... Re2+ $2 49. Kg3 $18)) 48. cxd5 $18 {[%emt 0:00:00]} Kc7 {[%emt 0:00:57]} 49. f4 {[%emt 0:00:00]} ({Less strong is} 49. f7 Rh5+ 50. Kg3 Bxf7 $14) 49... Re2+ {[%emt 0:00:12]} 50. Kg3 {[%emt 0:00:00]} Rxa2 {[%emt 0:01:50]} 51. f7 {[%emt 0:00:13]} Bxf7 {[%emt 0:00:04]} 52. Bxf7 {[%emt 0:00:06]} Ra3 {[%emt 0:01:30]} 53. Be5+ {[%emt 0:00:56]} Kd7 {[%emt 0:00:01]} 54. d6 {[%emt 0:00:23]} (54. Be6+ $142 Ke8 55. d6 Ra2 56. d7+ Ke7 57. Bc3 (57. Bf6+ Kxf6 58. d8=Q+ Kxe6 $18) 57... Rc2 58. Bb4+ Kxe6 59. d8=Q (59. d8=B Kf5 $11)) 54... a5 {[%emt 0:00:09]} 55. Kg4 {[%emt 0:01:37]} a4 {[%emt 0:00:01]} 56. bxa4 {[%emt 0:00:07]} Rxa4 {[%emt 0:00:03]} 57. Kf5 {[%emt 0:00:10]} 1-0